[Event "Titled Tuesday Blitz March 28 Late 2023"]
[White "Tilicheev, Viacheslav"]
[Black "Sjugirov, Sanan"]
[WhiteFideId "24114928"]
[BlackFideId "4189302"]
[WhiteElo "2415"]
[BlackElo "2569"]
[Result "0-1"]
[Round "07"]
[TimeControl "180+2"]
[Date "2023.03.28"]
[WhiteClock "0:00:02"]
[BlackClock "0:00:05"]

1. e4 {[%clk 0:03:00]}  e5 {[%clk 0:02:58]} 2. Nf3 {[%clk 0:03:00]}  d6 {[%clk 0:02:59]} 3. d4 {[%clk 0:03:00]}  exd4 {[%clk 0:03:00]} 4. Nxd4 {[%clk 0:03:00]}  Nf6 {[%clk 0:03:00]} 5. Nc3 {[%clk 0:03:01]}  Be7 {[%clk 0:03:01]} 6. g3 {[%clk 0:03:01]}  O-O {[%clk 0:03:01]} 7. Bg2 {[%clk 0:03:01]}  Re8 {[%clk 0:03:02]} 8. O-O {[%clk 0:03:01]}  Nbd7 {[%clk 0:03:03]} 9. h3 {[%clk 0:02:57]}  Bf8 {[%clk 0:03:03]} 10. a4 {[%clk 0:02:56]}  Nc5 {[%clk 0:03:03]} 11. Re1 {[%clk 0:02:57]}  a5 {[%clk 0:02:49]} 12. b3 {[%clk 0:02:56]}  c6 {[%clk 0:02:49]} 13. Bb2 {[%clk 0:02:55]}  Bd7 {[%clk 0:02:44]} 14. g4 {[%clk 0:02:42]}  h6 {[%clk 0:02:36]} 15. Nf5 {[%clk 0:02:36]}  Bxf5 {[%clk 0:02:33]} 16. gxf5 {[%clk 0:02:37]}  Qb6 {[%clk 0:02:28]} 17. Qf3 {[%clk 0:02:32]}  Rad8 {[%clk 0:02:24]} 18. Kh1 {[%clk 0:02:29]}  Ncd7 {[%clk 0:01:59]} 19. Rad1 {[%clk 0:02:09]}  Be7 {[%clk 0:01:47]} 20. Rg1 {[%clk 0:01:59]}  Ne5 {[%clk 0:01:39]} 21. Qe2 {[%clk 0:02:00]}  Ned7 {[%clk 0:01:02]} 22. f4 {[%clk 0:01:46]}  Bf8 {[%clk 0:01:02]} 23. Bf3 {[%clk 0:01:44]}  Qb4 {[%clk 0:00:39]} 24. Qf2 {[%clk 0:01:18]}  Qc5 {[%clk 0:00:36]} 25. Qh4 {[%clk 0:01:13]}  Kh8 {[%clk 0:00:34]} 26. Rg2 {[%clk 0:01:04]}  Qe3 {[%clk 0:00:33]} 27. Rd3 {[%clk 0:01:00]}  Qb6 {[%clk 0:00:32]} 28. Rd1 {[%clk 0:00:49]}  Qe3 {[%clk 0:00:31]} 29. Rd3 {[%clk 0:00:49]}  Qc5 {[%clk 0:00:31]} 30. Rd1 {[%clk 0:00:46]}  Be7 {[%clk 0:00:30]} 31. Rdg1 {[%clk 0:00:39]}  Rg8 {[%clk 0:00:28]} 32. Ne2 {[%clk 0:00:19]}  Rde8 {[%clk 0:00:20]} 33. e5 {[%clk 0:00:14]}  dxe5 {[%clk 0:00:18]} 34. fxe5 {[%clk 0:00:14]}  Nxe5 {[%clk 0:00:15]} 35. Be4 {[%clk 0:00:04]}  Nxe4 {[%clk 0:00:09]} 36. Qxe4 {[%clk 0:00:02]}  Bf6 {[%clk 0:00:09]} 37. Qf4 {[%clk 0:00:02]}  Qxc2 {[%clk 0:00:05]} 38. Ng3 {[%clk 0:00:02]}  Nd3 {[%clk 0:00:05]} 0-1


[Site "https://www.chess.com"]

[Event "Titled Tuesday Blitz March 28 Late 2023"]
[White "Ozer, Omer Faruk"]
[Black "Talibov, Shiroghlan"]
[WhiteFideId "6354564"]
[BlackFideId "13429078"]
[WhiteElo "2260"]
[BlackElo "2218"]
[Result "1-0"]
[Round "07"]
[TimeControl "180+2"]
[Date "2023.03.28"]
[WhiteClock "0:00:05"]
[BlackClock "0:00:07"]

1. e4 {[%clk 0:03:00]}  c5 {[%clk 0:02:57]} 2. Nf3 {[%clk 0:03:00]}  e6 {[%clk 0:02:52]} 3. d3 {[%clk 0:03:00]}  b5 {[%clk 0:02:49]} 4. g3 {[%clk 0:02:59]}  Bb7 {[%clk 0:02:49]} 5. Bg2 {[%clk 0:02:59]}  Nc6 {[%clk 0:02:49]} 6. a4 {[%clk 0:02:58]}  b4 {[%clk 0:02:48]} 7. O-O {[%clk 0:02:57]}  d6 {[%clk 0:02:47]} 8. d4 {[%clk 0:02:52]}  cxd4 {[%clk 0:02:46]} 9. Nxd4 {[%clk 0:02:53]}  Nge7 {[%clk 0:02:46]} 10. Nb3 {[%clk 0:02:27]}  Ng6 {[%clk 0:02:35]} 11. a5 {[%clk 0:02:27]}  a6 {[%clk 0:02:34]} 12. N1d2 {[%clk 0:02:26]}  Be7 {[%clk 0:02:30]} 13. Nc4 {[%clk 0:02:26]}  O-O {[%clk 0:02:29]} 14. Be3 {[%clk 0:02:25]}  Nce5 {[%clk 0:02:21]} 15. Nb6 {[%clk 0:02:25]}  Rb8 {[%clk 0:02:20]} 16. f4 {[%clk 0:02:23]}  Nd7 {[%clk 0:02:20]} 17. Qd2 {[%clk 0:02:18]}  Nxb6 {[%clk 0:02:02]} 18. Bxb6 {[%clk 0:02:19]}  Qd7 {[%clk 0:02:00]} 19. Qxb4 {[%clk 0:02:19]}  d5 {[%clk 0:02:00]} 20. Qd2 {[%clk 0:02:17]}  Rfc8 {[%clk 0:01:57]} 21. exd5 {[%clk 0:02:13]}  Bxd5 {[%clk 0:01:58]} 22. Bxd5 {[%clk 0:02:13]}  exd5 {[%clk 0:01:58]} 23. Rad1 {[%clk 0:02:04]}  Bf6 {[%clk 0:01:20]} 24. c3 {[%clk 0:01:50]}  Bd8 {[%clk 0:01:15]} 25. Bxd8 {[%clk 0:01:23]}  Rxb3 {[%clk 0:01:16]} 26. Bb6 {[%clk 0:01:22]}  Qb5 {[%clk 0:01:12]} 27. Qxd5 {[%clk 0:01:21]}  Rxb2 {[%clk 0:01:09]} 28. f5 {[%clk 0:00:48]}  Ne5 {[%clk 0:01:06]} 29. Qd8+ {[%clk 0:00:47]}  Qe8 {[%clk 0:01:02]} 30. Qxe8+ {[%clk 0:00:36]}  Rxe8 {[%clk 0:01:03]} 31. Bd4 {[%clk 0:00:27]}  Ng4 {[%clk 0:00:59]} 32. Rfe1 {[%clk 0:00:22]}  Rc8 {[%clk 0:00:56]} 33. h3 {[%clk 0:00:18]}  Nf6 {[%clk 0:00:54]} 34. Bxf6 {[%clk 0:00:18]}  gxf6 {[%clk 0:00:53]} 35. Rd4 {[%clk 0:00:14]}  Ra2 {[%clk 0:00:50]} 36. Rg4+ {[%clk 0:00:02]}  Kf8 {[%clk 0:00:49]} 37. Rh4 {[%clk 0:00:01]}  Rxc3 {[%clk 0:00:47]} 38. Rxh7 {[%clk 0:00:01]}  Rxg3+ {[%clk 0:00:44]} 39. Kh1 {[%clk 0:00:01]}  Rxa5 {[%clk 0:00:39]} 40. Rh8+ {[%clk 0:00:01]}  Kg7 {[%clk 0:00:39]} 41. Ree8 {[%clk 0:00:02]}  Rxh3+ {[%clk 0:00:20]} 42. Rxh3 {[%clk 0:00:03]}  Rxf5 {[%clk 0:00:20]} 43. Rg3+ {[%clk 0:00:03]}  Kh7 {[%clk 0:00:15]} 44. Ree3 {[%clk 0:00:04]}  Rb5 {[%clk 0:00:11]} 45. Kg2 {[%clk 0:00:05]}  a5 {[%clk 0:00:11]} 46. Rgf3 {[%clk 0:00:04]}  Kg7 {[%clk 0:00:10]} 47. Ra3 {[%clk 0:00:04]}  f5 {[%clk 0:00:09]} 48. Rf4 {[%clk 0:00:04]}  Kf6 {[%clk 0:00:08]} 49. Rfa4 {[%clk 0:00:04]}  Kg5 {[%clk 0:00:09]} 50. Rxa5 {[%clk 0:00:05]}  Rb2+ {[%clk 0:00:10]} 51. Kf3 {[%clk 0:00:05]}  Rh2 {[%clk 0:00:09]} 52. Kg3 {[%clk 0:00:03]}  Rb2 {[%clk 0:00:09]} 53. Rf3 {[%clk 0:00:03]}  Kg6 {[%clk 0:00:07]} 54. Raxf5 {[%clk 0:00:04]}  Rb7 {[%clk 0:00:07]} 55. Kg4 {[%clk 0:00:04]}  Kg7 {[%clk 0:00:07]} 56. Rg5+ {[%clk 0:00:04]}  Kf8 {[%clk 0:00:07]} 57. Kh5 {[%clk 0:00:04]}  Rb6 {[%clk 0:00:06]} 58. Rgf5 {[%clk 0:00:04]}  Rb7 {[%clk 0:00:06]} 59. Kh6 {[%clk 0:00:04]}  Kg8 {[%clk 0:00:06]} 60. Rg3+ {[%clk 0:00:04]}  Kf8 {[%clk 0:00:06]} 61. Kh7 {[%clk 0:00:05]}  Ke7 {[%clk 0:00:07]} 62. Rxf7+ {[%clk 0:00:05]} 1-0


[Site "https://www.chess.com"]

[Event "Titled Tuesday Blitz March 28 Late 2023"]
[White "Fressinet, Laurent"]
[Black "Mekhitarian, Krikor Sevag"]
[WhiteFideId "608742"]
[BlackFideId "2107660"]
[WhiteElo "2633"]
[BlackElo "2604"]
[Result "1-0"]
[Round "07"]
[TimeControl "180+2"]
[Date "2023.03.28"]
[WhiteClock "0:00:33"]
[BlackClock "0:00:16"]

1. d4 {[%clk 0:03:00]}  Nf6 {[%clk 0:02:59]} 2. Nf3 {[%clk 0:03:01]}  g6 {[%clk 0:02:59]} 3. Bg5 {[%clk 0:03:00]}  Bg7 {[%clk 0:02:59]} 4. e3 {[%clk 0:03:00]}  O-O {[%clk 0:02:59]} 5. Nbd2 {[%clk 0:02:57]}  d5 {[%clk 0:02:58]} 6. Be2 {[%clk 0:02:57]}  Nbd7 {[%clk 0:02:53]} 7. O-O {[%clk 0:02:57]}  c5 {[%clk 0:02:50]} 8. c3 {[%clk 0:02:56]}  b6 {[%clk 0:02:49]} 9. a4 {[%clk 0:02:55]}  Bb7 {[%clk 0:02:43]} 10. a5 {[%clk 0:02:54]}  e6 {[%clk 0:02:38]} 11. Qa4 {[%clk 0:02:49]}  Qc8 {[%clk 0:02:28]} 12. a6 {[%clk 0:02:28]}  Bc6 {[%clk 0:02:28]} 13. Bb5 {[%clk 0:02:29]}  Bxb5 {[%clk 0:02:25]} 14. Qxb5 {[%clk 0:02:30]}  Ne8 {[%clk 0:02:10]} 15. Be7 {[%clk 0:02:18]}  Nc7 {[%clk 0:01:56]} 16. Qa4 {[%clk 0:02:02]}  Re8 {[%clk 0:01:51]} 17. Bd6 {[%clk 0:02:02]}  Bf8 {[%clk 0:01:31]} 18. Bg3 {[%clk 0:01:59]}  b5 {[%clk 0:01:29]} 19. Qa5 {[%clk 0:01:57]}  Nb6 {[%clk 0:01:29]} 20. Bxc7 {[%clk 0:01:53]}  Qxc7 {[%clk 0:01:28]} 21. Qxb5 {[%clk 0:01:53]}  Rab8 {[%clk 0:01:27]} 22. Qa5 {[%clk 0:01:53]}  Rec8 {[%clk 0:01:26]} 23. h3 {[%clk 0:01:37]}  Bd6 {[%clk 0:01:26]} 24. Rfd1 {[%clk 0:01:34]}  Qc6 {[%clk 0:01:24]} 25. Qa2 {[%clk 0:01:27]}  c4 {[%clk 0:01:10]} 26. Rdb1 {[%clk 0:01:26]}  Nd7 {[%clk 0:01:04]} 27. Qa4 {[%clk 0:01:25]}  Qxa4 {[%clk 0:01:01]} 28. Rxa4 {[%clk 0:01:24]}  Rb6 {[%clk 0:00:55]} 29. e4 {[%clk 0:01:13]}  Rcb8 {[%clk 0:00:46]} 30. Ra2 {[%clk 0:01:11]}  Bf4 {[%clk 0:00:40]} 31. exd5 {[%clk 0:01:06]}  exd5 {[%clk 0:00:41]} 32. Nf1 {[%clk 0:01:06]}  Rb3 {[%clk 0:00:39]} 33. g3 {[%clk 0:01:05]}  Bh6 {[%clk 0:00:39]} 34. N3d2 {[%clk 0:00:57]}  Bxd2 {[%clk 0:00:38]} 35. Nxd2 {[%clk 0:00:58]}  R3b5 {[%clk 0:00:37]} 36. Nf1 {[%clk 0:00:57]}  f5 {[%clk 0:00:33]} 37. Re1 {[%clk 0:00:50]}  Kf7 {[%clk 0:00:33]} 38. Ne3 {[%clk 0:00:48]}  Nf6 {[%clk 0:00:32]} 39. Re2 {[%clk 0:00:48]}  Re8 {[%clk 0:00:28]} 40. Kf1 {[%clk 0:00:46]}  Re6 {[%clk 0:00:29]} 41. Nc2 {[%clk 0:00:43]}  Ne4 {[%clk 0:00:29]} 42. Nb4 {[%clk 0:00:41]}  Reb6 {[%clk 0:00:24]} 43. Kg2 {[%clk 0:00:38]}  h5 {[%clk 0:00:23]} 44. f3 {[%clk 0:00:36]}  Nf6 {[%clk 0:00:23]} 45. Ra1 {[%clk 0:00:34]}  Rxb4 {[%clk 0:00:19]} 46. cxb4 {[%clk 0:00:35]}  Rxb4 {[%clk 0:00:20]} 47. Rae1 {[%clk 0:00:35]}  Rb3 {[%clk 0:00:20]} 48. Re7+ {[%clk 0:00:34]}  Kf8 {[%clk 0:00:16]} 49. Rb7 {[%clk 0:00:33]} 1-0


[Site "https://www.chess.com"]

[Event "Titled Tuesday Blitz March 28 Late 2023"]
[White "Vachier-Lagrave, Maxime"]
[Black "Javakhadze, Zurab"]
[WhiteFideId "623539"]
[BlackFideId "13603647"]
[WhiteElo "2740"]
[BlackElo "2381"]
[Result "0-1"]
[Round "07"]
[TimeControl "180+2"]
[Date "2023.03.28"]
[WhiteClock "0:00:52"]
[BlackClock "0:00:14"]

1. c4 {[%clk 0:03:00]}  e6 {[%clk 0:02:41]} 2. e4 {[%clk 0:02:59]}  d5 {[%clk 0:02:39]} 3. cxd5 {[%clk 0:03:00]}  exd5 {[%clk 0:02:40]} 4. exd5 {[%clk 0:03:01]}  Nf6 {[%clk 0:02:40]} 5. Nc3 {[%clk 0:03:02]}  Nxd5 {[%clk 0:02:39]} 6. Nf3 {[%clk 0:03:00]}  Be7 {[%clk 0:02:39]} 7. Bc4 {[%clk 0:03:00]}  Nf6 {[%clk 0:02:35]} 8. d4 {[%clk 0:03:00]}  O-O {[%clk 0:02:35]} 9. O-O {[%clk 0:03:00]}  Nbd7 {[%clk 0:02:33]} 10. Bb3 {[%clk 0:02:58]}  Nb6 {[%clk 0:02:32]} 11. Ne5 {[%clk 0:02:59]}  c6 {[%clk 0:02:33]} 12. Re1 {[%clk 0:02:57]}  Nbd5 {[%clk 0:02:32]} 13. Bg5 {[%clk 0:02:57]}  h6 {[%clk 0:02:28]} 14. Bh4 {[%clk 0:02:57]}  Re8 {[%clk 0:02:24]} 15. Rc1 {[%clk 0:02:56]}  Be6 {[%clk 0:02:24]} 16. Qf3 {[%clk 0:02:54]}  Rc8 {[%clk 0:02:03]} 17. h3 {[%clk 0:02:52]}  Nc7 {[%clk 0:01:55]} 18. Ne2 {[%clk 0:02:31]}  Bd5 {[%clk 0:01:49]} 19. Qd3 {[%clk 0:02:29]}  Ne6 {[%clk 0:01:38]} 20. Bxf6 {[%clk 0:02:23]}  Bxf6 {[%clk 0:01:32]} 21. Bc2 {[%clk 0:02:23]}  g6 {[%clk 0:01:29]} 22. Nxf7 {[%clk 0:02:21]}  Kxf7 {[%clk 0:01:27]} 23. Qxg6+ {[%clk 0:02:21]}  Kf8 {[%clk 0:01:28]} 24. Nc3 {[%clk 0:02:08]}  Bg5 {[%clk 0:01:14]} 25. Re5 {[%clk 0:01:46]}  Ng7 {[%clk 0:00:53]} 26. f4 {[%clk 0:01:41]}  Rxe5 {[%clk 0:00:46]} 27. dxe5 {[%clk 0:01:32]}  Qb6+ {[%clk 0:00:46]} 28. Kh1 {[%clk 0:01:26]}  Qe3 {[%clk 0:00:42]} 29. Qd6+ {[%clk 0:01:09]}  Be7 {[%clk 0:00:36]} 30. Qxh6 {[%clk 0:01:05]}  Qxc1+ {[%clk 0:00:27]} 31. Bd1 {[%clk 0:01:05]}  Qd2 {[%clk 0:00:20]} 32. Qh8+ {[%clk 0:01:01]}  Bg8 {[%clk 0:00:19]} 33. Bg4 {[%clk 0:00:59]}  Qc1+ {[%clk 0:00:18]} 34. Kh2 {[%clk 0:00:54]}  Qxf4+ {[%clk 0:00:18]} 35. Kh1 {[%clk 0:00:54]}  Rd8 {[%clk 0:00:18]} 36. e6 {[%clk 0:00:54]}  Bd6 {[%clk 0:00:17]} 37. Kg1 {[%clk 0:00:54]}  Bc5+ {[%clk 0:00:16]} 38. Kh1 {[%clk 0:00:54]}  Rd2 {[%clk 0:00:15]} 39. Qh4 {[%clk 0:00:52]}  Qf1+ {[%clk 0:00:14]} 0-1


[Site "https://www.chess.com"]

[Event "Titled Tuesday Blitz March 28 Late 2023"]
[White "Vlassov, Nikolai"]
[Black "Naroditsky, Daniel"]
[WhiteFideId "4103360"]
[BlackFideId "2026961"]
[WhiteElo "2324"]
[BlackElo "2633"]
[Result "1/2-1/2"]
[Round "07"]
[TimeControl "180+2"]
[Date "2023.03.28"]
[WhiteClock "0:00:05"]
[BlackClock "0:02:00"]

1. e4 {[%clk 0:03:00]}  c5 {[%clk 0:03:00]} 2. c3 {[%clk 0:03:00]}  d5 {[%clk 0:03:00]} 3. exd5 {[%clk 0:03:00]}  Nf6 {[%clk 0:03:01]} 4. Bb5+ {[%clk 0:02:59]}  Nbd7 {[%clk 0:03:01]} 5. c4 {[%clk 0:02:59]}  a6 {[%clk 0:03:01]} 6. Bxd7+ {[%clk 0:02:59]}  Qxd7 {[%clk 0:03:00]} 7. Qe2 {[%clk 0:02:58]}  b5 {[%clk 0:02:59]} 8. d3 {[%clk 0:02:58]}  e6 {[%clk 0:02:58]} 9. Nf3 {[%clk 0:02:57]}  Bd6 {[%clk 0:02:56]} 10. O-O {[%clk 0:02:54]}  O-O {[%clk 0:02:56]} 11. dxe6 {[%clk 0:02:54]}  Qxe6 {[%clk 0:02:57]} 12. Qxe6 {[%clk 0:02:53]}  Bxe6 {[%clk 0:02:58]} 13. b3 {[%clk 0:02:53]}  Bf5 {[%clk 0:02:59]} 14. Rd1 {[%clk 0:02:46]}  Rfd8 {[%clk 0:02:59]} 15. Bg5 {[%clk 0:02:42]}  Be7 {[%clk 0:03:00]} 16. Nc3 {[%clk 0:02:05]}  h6 {[%clk 0:03:00]} 17. Be3 {[%clk 0:01:56]}  Bxd3 {[%clk 0:02:59]} 18. Ne5 {[%clk 0:01:52]}  Bf5 {[%clk 0:02:59]} 19. Rxd8+ {[%clk 0:01:29]}  Bxd8 {[%clk 0:03:00]} 20. cxb5 {[%clk 0:01:28]}  Ba5 {[%clk 0:03:00]} 21. Rc1 {[%clk 0:01:23]}  Bxc3 {[%clk 0:03:00]} 22. Rxc3 {[%clk 0:01:23]}  axb5 {[%clk 0:03:01]} 23. Rxc5 {[%clk 0:01:17]}  Rxa2 {[%clk 0:03:02]} 24. h3 {[%clk 0:01:17]}  b4 {[%clk 0:03:02]} 25. Rb5 {[%clk 0:01:14]}  Be6 {[%clk 0:03:03]} 26. Rxb4 {[%clk 0:01:13]}  Nd5 {[%clk 0:03:03]} 27. Rb8+ {[%clk 0:01:12]}  Kh7 {[%clk 0:03:04]} 28. Bd4 {[%clk 0:01:09]}  Rd2 {[%clk 0:03:04]} 29. Nf3 {[%clk 0:01:09]}  Rd1+ {[%clk 0:03:05]} 30. Kh2 {[%clk 0:01:09]}  Nf4 {[%clk 0:03:06]} 31. Be3 {[%clk 0:01:02]}  Nd5 {[%clk 0:03:04]} 32. b4 {[%clk 0:01:01]}  Rb1 {[%clk 0:03:03]} 33. b5 {[%clk 0:01:01]}  Rb2 {[%clk 0:03:03]} 34. b6 {[%clk 0:00:59]}  Nxe3 {[%clk 0:03:03]} 35. fxe3 {[%clk 0:00:59]}  Bd5 {[%clk 0:03:04]} 36. Kg3 {[%clk 0:01:00]}  f6 {[%clk 0:03:02]} 37. h4 {[%clk 0:00:59]}  h5 {[%clk 0:03:03]} 38. Rd8 {[%clk 0:00:31]}  Bb7 {[%clk 0:02:59]} 39. Rd6 {[%clk 0:00:31]}  Kg6 {[%clk 0:02:59]} 40. Kh3 {[%clk 0:00:27]}  Kf5 {[%clk 0:02:59]} 41. Kg3 {[%clk 0:00:27]}  g5 {[%clk 0:02:54]} 42. Nd4+ {[%clk 0:00:19]}  Kg6 {[%clk 0:02:53]} 43. hxg5 {[%clk 0:00:17]}  Kxg5 {[%clk 0:02:49]} 44. Nf3+ {[%clk 0:00:15]}  Kf5 {[%clk 0:02:50]} 45. Nd4+ {[%clk 0:00:14]}  Kg6 {[%clk 0:02:48]} 46. Nf3 {[%clk 0:00:14]}  Rb3 {[%clk 0:02:47]} 47. Kf4 {[%clk 0:00:13]}  Rb4+ {[%clk 0:02:48]} 48. Nd4 {[%clk 0:00:14]}  Bxg2 {[%clk 0:02:48]} 49. e4 {[%clk 0:00:13]}  h4 {[%clk 0:02:48]} 50. e5 {[%clk 0:00:14]}  h3 {[%clk 0:02:48]} 51. Kg3 {[%clk 0:00:11]}  Rb2 {[%clk 0:02:41]} 52. Rxf6+ {[%clk 0:00:10]}  Kh5 {[%clk 0:02:42]} 53. Rf5+ {[%clk 0:00:09]}  Kg6 {[%clk 0:02:42]} 54. Rf6+ {[%clk 0:00:09]}  Kh7 {[%clk 0:02:43]} 55. e6 {[%clk 0:00:09]}  Bd5 {[%clk 0:02:04]} 56. Kxh3 {[%clk 0:00:08]}  Kg7 {[%clk 0:02:05]} 57. Rf7+ {[%clk 0:00:08]}  Kg6 {[%clk 0:02:05]} 58. Re7 {[%clk 0:00:07]}  Rxb6 {[%clk 0:02:05]} 59. Kg4 {[%clk 0:00:06]}  Rb4 {[%clk 0:02:02]} 60. Kf4 {[%clk 0:00:06]}  Kf6 {[%clk 0:01:51]} 61. Rf7+ {[%clk 0:00:06]}  Kg6 {[%clk 0:01:51]} 62. Ke5 {[%clk 0:00:02]}  Bxe6 {[%clk 0:01:52]} 63. Rf6+ {[%clk 0:00:02]}  Kg5 {[%clk 0:01:52]} 64. Rxe6 {[%clk 0:00:02]}  Rb1 {[%clk 0:01:52]} 65. Kd5 {[%clk 0:00:01]}  Rb8 {[%clk 0:01:51]} 66. Re5+ {[%clk 0:00:01]}  Kf4 {[%clk 0:01:52]} 67. Rf5+ {[%clk 0:00:01]}  Kg4 {[%clk 0:01:52]} 68. Rf7 {[%clk 0:00:02]}  Rd8+ {[%clk 0:01:53]} 69. Ke5 {[%clk 0:00:02]}  Re8+ {[%clk 0:01:53]} 70. Ne6 {[%clk 0:00:02]}  Ra8 {[%clk 0:01:54]} 71. Rg7+ {[%clk 0:00:02]}  Kf3 {[%clk 0:01:55]} 72. Nd4+ {[%clk 0:00:03]}  Ke3 {[%clk 0:01:55]} 73. Rg3+ {[%clk 0:00:03]}  Kd2 {[%clk 0:01:55]} 74. Ke4 {[%clk 0:00:02]}  Re8+ {[%clk 0:01:56]} 75. Kd5 {[%clk 0:00:03]}  Rd8+ {[%clk 0:01:57]} 76. Kc5 {[%clk 0:00:03]}  Rc8+ {[%clk 0:01:57]} 77. Nc6 {[%clk 0:00:03]}  Rh8 {[%clk 0:01:58]} 78. Nd4 {[%clk 0:00:03]}  Rc8+ {[%clk 0:01:58]} 79. Kd5 {[%clk 0:00:04]}  Rd8+ {[%clk 0:01:59]} 80. Ke4 {[%clk 0:00:04]}  Re8+ {[%clk 0:01:59]} 81. Kd5 {[%clk 0:00:05]}  Rd8+ {[%clk 0:02:00]} 1/2-1/2


[Site "https://www.chess.com"]

[Event "Titled Tuesday Blitz March 28 Late 2023"]
[White "Duda, Jan-Krzysztof"]
[Black "Thomforde-Toates, Noah"]
[WhiteFideId "1170546"]
[BlackFideId "30951992"]
[WhiteElo "2790"]
[BlackElo "2662"]
[Result "1-0"]
[Round "07"]
[TimeControl "180+2"]
[Date "2023.03.28"]
[WhiteClock "0:00:07"]
[BlackClock "0:00:09"]

1. Nf3 {[%clk 0:03:00]}  Nf6 {[%clk 0:02:59]} 2. g3 {[%clk 0:03:01]}  g6 {[%clk 0:03:00]} 3. Bg2 {[%clk 0:03:02]}  Bg7 {[%clk 0:03:00]} 4. O-O {[%clk 0:03:03]}  O-O {[%clk 0:03:01]} 5. d4 {[%clk 0:03:04]}  d6 {[%clk 0:03:01]} 6. c4 {[%clk 0:03:04]}  Nc6 {[%clk 0:03:02]} 7. Nc3 {[%clk 0:03:03]}  e5 {[%clk 0:03:02]} 8. d5 {[%clk 0:03:02]}  Nb8 {[%clk 0:03:02]} 9. e4 {[%clk 0:03:01]}  a5 {[%clk 0:03:02]} 10. Ne1 {[%clk 0:03:01]}  Na6 {[%clk 0:03:02]} 11. Nd3 {[%clk 0:03:02]}  Nd7 {[%clk 0:03:03]} 12. h4 {[%clk 0:02:51]}  Ndc5 {[%clk 0:03:02]} 13. b3 {[%clk 0:02:39]}  Nxd3 {[%clk 0:03:01]} 14. Qxd3 {[%clk 0:02:40]}  Nc5 {[%clk 0:03:02]} 15. Qe2 {[%clk 0:02:36]}  f5 {[%clk 0:03:02]} 16. exf5 {[%clk 0:02:29]}  gxf5 {[%clk 0:03:00]} 17. Be3 {[%clk 0:02:28]}  b6 {[%clk 0:02:55]} 18. Rab1 {[%clk 0:02:27]}  Bd7 {[%clk 0:02:50]} 19. a3 {[%clk 0:02:26]}  e4 {[%clk 0:02:45]} 20. Bd2 {[%clk 0:02:22]}  Qf6 {[%clk 0:02:40]} 21. b4 {[%clk 0:02:17]}  axb4 {[%clk 0:02:34]} 22. axb4 {[%clk 0:02:18]}  Nd3 {[%clk 0:02:34]} 23. Rb3 {[%clk 0:01:50]}  Rfe8 {[%clk 0:02:18]} 24. Be3 {[%clk 0:01:32]}  f4 {[%clk 0:01:43]} 25. Nxe4 {[%clk 0:01:29]}  Qg6 {[%clk 0:01:33]} 26. h5 {[%clk 0:01:12]}  Qf5 {[%clk 0:01:29]} 27. Bd2 {[%clk 0:01:07]}  f3 {[%clk 0:01:02]} 28. Qxf3 {[%clk 0:00:57]}  Qxf3 {[%clk 0:00:59]} 29. Bxf3 {[%clk 0:00:58]}  Ne5 {[%clk 0:00:59]} 30. Bg2 {[%clk 0:00:58]}  Nxc4 {[%clk 0:00:58]} 31. Bg5 {[%clk 0:00:57]}  Ba4 {[%clk 0:00:53]} 32. Rbb1 {[%clk 0:00:27]}  Bc2 {[%clk 0:00:52]} 33. Rbc1 {[%clk 0:00:21]}  Ra2 {[%clk 0:00:41]} 34. Nf6+ {[%clk 0:00:18]}  Bxf6 {[%clk 0:00:41]} 35. Bxf6 {[%clk 0:00:19]}  b5 {[%clk 0:00:42]} 36. Ra1 {[%clk 0:00:18]}  Rea8 {[%clk 0:00:39]} 37. Rxa2 {[%clk 0:00:18]}  Rxa2 {[%clk 0:00:40]} 38. Ra1 {[%clk 0:00:18]}  Rxa1+ {[%clk 0:00:39]} 39. Bxa1 {[%clk 0:00:18]}  Kf7 {[%clk 0:00:37]} 40. Bd4 {[%clk 0:00:14]}  Nd2 {[%clk 0:00:31]} 41. Be3 {[%clk 0:00:02]}  Nc4 {[%clk 0:00:27]} 42. Bd4 {[%clk 0:00:02]}  Nd2 {[%clk 0:00:26]} 43. Ba7 {[%clk 0:00:02]}  Ke7 {[%clk 0:00:19]} 44. h6 {[%clk 0:00:02]}  Kd7 {[%clk 0:00:19]} 45. Be3 {[%clk 0:00:01]}  Nc4 {[%clk 0:00:19]} 46. Bh3+ {[%clk 0:00:01]}  Ke7 {[%clk 0:00:17]} 47. Bg5+ {[%clk 0:00:02]}  Ke8 {[%clk 0:00:18]} 48. Be6 {[%clk 0:00:02]}  Be4 {[%clk 0:00:17]} 49. f4 {[%clk 0:00:02]}  Nb6 {[%clk 0:00:17]} 50. Bf6 {[%clk 0:00:01]}  Bxd5 {[%clk 0:00:17]} 51. Bf5 {[%clk 0:00:01]}  Bg8 {[%clk 0:00:17]} 52. Bc3 {[%clk 0:00:02]}  Nd5 {[%clk 0:00:17]} 53. Bd2 {[%clk 0:00:02]}  Ne7 {[%clk 0:00:17]} 54. Bd3 {[%clk 0:00:02]}  c6 {[%clk 0:00:17]} 55. g4 {[%clk 0:00:03]}  Nd5 {[%clk 0:00:15]} 56. Kf2 {[%clk 0:00:03]}  Kd7 {[%clk 0:00:14]} 57. g5 {[%clk 0:00:03]}  Ne7 {[%clk 0:00:13]} 58. f5 {[%clk 0:00:03]}  Ke8 {[%clk 0:00:11]} 59. Kg3 {[%clk 0:00:03]}  Kf8 {[%clk 0:00:10]} 60. g6 {[%clk 0:00:03]}  Nd5 {[%clk 0:00:08]} 61. Kh4 {[%clk 0:00:03]}  c5 {[%clk 0:00:06]} 62. bxc5 {[%clk 0:00:03]}  dxc5 {[%clk 0:00:07]} 63. Bxb5 {[%clk 0:00:04]}  Ne7 {[%clk 0:00:07]} 64. Bd3 {[%clk 0:00:03]}  c4 {[%clk 0:00:08]} 65. Bc2 {[%clk 0:00:03]}  Nc6 {[%clk 0:00:08]} 66. Bc3 {[%clk 0:00:03]}  Na7 {[%clk 0:00:06]} 67. Bb4+ {[%clk 0:00:03]}  Ke8 {[%clk 0:00:05]} 68. Ba4+ {[%clk 0:00:04]}  Kd8 {[%clk 0:00:05]} 69. f6 {[%clk 0:00:04]}  hxg6 {[%clk 0:00:05]} 70. h7 {[%clk 0:00:05]}  Bxh7 {[%clk 0:00:04]} 71. f7 {[%clk 0:00:06]}  g5+ {[%clk 0:00:04]} 72. Kxg5 {[%clk 0:00:06]}  Bg6 {[%clk 0:00:05]} 73. f8=Q+ {[%clk 0:00:06]}  Kc7 {[%clk 0:00:06]} 74. Qd6+ {[%clk 0:00:06]}  Kb7 {[%clk 0:00:06]} 75. Kxg6 {[%clk 0:00:06]}  c3 {[%clk 0:00:07]} 76. Qd5+ {[%clk 0:00:07]}  Nc6 {[%clk 0:00:08]} 77. Bxc6+ {[%clk 0:00:06]}  Kb8 {[%clk 0:00:09]} 78. Qd7 {[%clk 0:00:06]}  c2 {[%clk 0:00:09]} 79. Bd6# {[%clk 0:00:07]} 1-0


[Site "https://www.chess.com"]